[Event "4NCL Div 2 2024-25"]
[Site "England"]
[Date "2025.01.25"]
[Round "3.6"]
[White "Hariharan, Shambavi"]
[Black "Vaidyanathan, Adithya"]
[Result "1-0"]
[Annotator "TA"]
[ECO "A37"]
[WhiteElo "1940"]
[BlackElo "1872"]
[PlyCount "105"]
[EventDate "2024.11.23"]
[EventType "team-tourn"]
[EventCountry "ENG"]
[SourceTitle "playchess.com"]
[Source "ChessBase"]
[SourceQuality "1"]
[TimeControl "40/6000+30:3000+30"]

{[%evp 16,104,-2,-20,0,-8,4,4,6,-113,-114,-113,-108,-108,-110,-139,-130,-140,-104,-103,-62,-60,-52,-54,0,-71,-62,-118,-124,-116,-100,-68,-50,-50,-59,-51,-37,-25,-16,-31,-10,-9,0,0,259,222,254,227,206,56,186,114,128,7,330,8,755,416,1204,1143,29986,29985,29985,29986,29986,29984,29990,29991,29992,29993,29994,29980,29980,29979,29992,29993,29993,29994,29994,29995,29995,29996,29997,29997,29997,29997,29997,29998,29998,29999,29999]} 1. Nf3 {[%emt 0:10:26]} c5 {[%emt 0:10:09]} 2. g3 {[%emt 0:00:04]} Nc6 {[%emt 0:00:17]} 3. Bg2 {[%emt 0:00:04]} g6 {[%emt 0:00:04]} 4. O-O {[%emt 0:00:07]} Bg7 {[%emt 0:00:04]} 5. c4 {[%emt 0:00:11]} e5 {[%emt 0:00:12]} 6. Nc3 {[%emt 0:01:01]} Nge7 {[%emt 0:00:07]} 7. d3 {[%emt 0:01:38]} O-O {[%emt 0:00:12]} 8. e4 {[%emt 0:01:36]} d6 {[%emt 0:00:47]} 9. Be3 {[%emt 0:03:34]} f5 {[%emt 0:08:20] A37: Symmetrical English vs ...g6: 4 Bg2 Bg7 5 Nf3.} 10. Qd2 {[%emt 0:10:16]} Nd4 {[%emt 0:02:36]} 11. Bg5 {[%emt 0:11:23]} Ne6 {[%emt 0:09:18] The position is equal.} 12. Bh6 {[%emt 0:05:47]} (12. exf5 $11 {remains equal.} Nxg5 13. Qxg5) 12... f4 $17 {[%emt 0:03:11]} 13. Bxg7 {[%emt 0:00:35]} Kxg7 {[%emt 0:00:04]} 14. Nd5 {[%emt 0:01:26]} g5 $146 {[%emt 0:02:00]} (14... Nc6 15. Bh3 Ned4 16. Bg2 Nxf3+ 17. Bxf3 Bh3 18. Bg2 Bxg2 19. Kxg2 f3+ 20. Kh1 Nd4 {½-½ Vohmann,W (1892)-Wawrinsky,L (1812) Rheinland Pfalz op Seniors 14th 2016 (3)}) 15. Ne1 {[%emt 0:17:38]} Nd4 {[%emt 0:05:48]} 16. Nf3 {[%emt 0:12:40]} Nxf3+ {[%emt 0:02:56]} 17. Bxf3 {[%emt 0:00:07]} g4 {[%emt 0:09:52]} 18. Bd1 {[%emt 0:30:57]} Nxd5 {[%emt 0:05:41]} 19. cxd5 {[%emt 0:00:00]} f3 {[%emt 0:01:08]} (19... h5 $15) 20. h3 {[%emt 0:00:00]} gxh3 {[%emt 0:00:13][%csl Oh3] Black has a strong passed pawn} 21. Kh2 {[%emt 0:00:00]} ({White should play} 21. b4 $15) 21... a5 $1 {[%emt 0:00:54]} 22. Ba4 {[%emt 0:00:00]} h6 {[%emt 0:07:50]} 23. a3 {[%emt 0:00:00]} Rb8 {[%emt 0:08:02]} 24. Bb5 {[%emt 0:00:00]} Qb6 {[%emt 0:00:43]} 25. Ba4 {[%emt 0:00:00]} Qa6 {[%emt 0:02:38]} 26. b4 {[%emt 0:00:00]} (26. Rg1 b5 27. Bc2 (27. Bd1 Bg4 $17) 27... Qa7 $19) 26... b5 {[%emt 0:00:53] aiming for ...axb4.} 27. Bc2 {[%emt 0:00:00]} Qb6 {[%emt 0:04:25]} 28. bxc5 {[%emt 0:00:00]} (28. bxa5 Qd8 29. Rab1 Bg4 $15) 28... dxc5 {[%emt 0:01:41]} (28... Qxc5 $5 29. Qxa5 Bg4 $15 (29... Qxc2 $2 30. Rac1 $18)) 29. a4 {[%emt 0:01:15]} bxa4 {[%emt 0:12:34][%mdl 8192]} (29... b4 $11) 30. Rab1 $18 {[%emt 0:02:01]} (30. Rxa4 Bg4 31. Rxa5 Ra8 32. Rxa8 Rxa8 $16) (30. Bxa4 Qb4 31. Ra2 Qxd2 32. Rxd2 Rb4 $11) 30... Qc7 {[%emt 0:00:36] [#]} 31. Rxb8 $1 {[%emt 0:00:03]} (31. Bxa4 Rb4 $16) 31... Qxb8 {[%emt 0:00:17]} 32. Qxa5 {[%emt 0:00:05]} (32. Bxa4 Qb4 33. Qc2 h5 $17) (32. Rb1 $1 $18 {[%cal Rb1b8]} Qa7 33. Bxa4) 32... Rf7 {[%emt 0:07:22]} (32... Qb2 $1 $14) 33. Qxa4 {[%emt 0:01:12]} (33. Bxa4 $18 Bg4 34. Qxc5) 33... Qb2 {[%emt 0:01:29]} 34. Qc4 {[%emt 0:01:36] Wards off Qc3} (34. Qc6 $1 $16 {[%cal Rc6c8]}) 34... Rc7 {[%emt 0:03:15][%mdl 8192] [#] White now steadily converts the win.} (34... Qb4 $11 {and Black stays safe.}) 35. Rb1 $2 {[%emt 0:00:16]} ({Only move:} 35. d6 $1 $18 Rf7 36. Qxc5) 35... Qa3 $2 {[%emt 0:00:01][%mdl 8192]} (35... Qd4 $11 36. Qxd4 cxd4) 36. Bb3 {[%emt 0:00:34] d6 is the strong threat.} Ba6 {[%emt 0:00:12]} (36... Qb4 $142 37. d6 Qxc4 38. Bxc4 Ra7) 37. Qc3 {[%emt 0:00:24]} Qb4 {[%emt 0:02:30]} 38. Qxe5+ {[%emt 0:00:17] White mates.} Kg6 {[%emt 0:00:07]} 39. Qxc7 {[%emt 0:00:47]} Qd2 {[%emt 0:00:03]} 40. Qxc5 {[%emt 0:00:56]} Bxd3 {[%emt 0:00:36]} 41. Rd1 {[%emt 0:50:47]} Qe2 {[%emt 0:50:24]} 42. d6 {[%emt 0:00:41]} Bxe4 {[%emt 0:00:24]} 43. Qe3 {[%emt 0:00:50]} Qxe3 {[%emt 0:00:16]} 44. fxe3 {[%emt 0:00:05]} f2 {[%emt 0:00:05]} 45. d7 {[%emt 0:00:26]} Bd3 {[%emt 0:00:06]} 46. d8=Q {[%emt 0:00:17]} f1=Q {[%emt 0:00:07]} 47. Rxf1 {[%emt 0:00:03]} Bxf1 {[%emt 0:00:06]} 48. Qg8+ {[%emt 0:00:10]} Kf6 {[%emt 0:00:08]} 49. Qf8+ {[%emt 0:00:06]} Kg6 {[%emt 0:00:16]} 50. Qxf1 {[%emt 0:00:13]} h5 {[%emt 0:00:06]} 51. Qf7+ {[%emt 0:00:16]} Kh6 {[%emt 0:00:25]} 52. Bc2 {[%emt 0:00:19][%csl Gc2][%cal Rf7g6]} Kg5 {[%emt 0:00:03]} 53. Qg6# {[%emt 0:00:41] Weighted Error Value: White=0.33/Black=0.61  Loses game:     	---       	Black=3      Missed win:     	White=1     	---        Mistake:       	White=6     	Black=3      Inaccurate:     	White=1     	Black=2      OK:         	White=11    	Black=6      Best:        	---       	Black=1      Strong:       	White=1     	Black=1} 1-0

[Event "4NCL Div 2 2024-25"]
[Site "England"]
[Date "2025.01.25"]
[Round "3.7"]
[White "Cooper, David M"]
[Black "Zakarian, Dimitrios Levon"]
[Result "0-1"]
[Annotator "TA"]
[ECO "A18"]
[WhiteElo "1995"]
[BlackElo "1968"]
[PlyCount "80"]
[EventDate "2024.11.23"]
[EventType "team-tourn"]
[EventCountry "ENG"]
[SourceTitle "playchess.com"]
[Source "ChessBase"]
[SourceQuality "1"]
[TimeControl "40/6000+30:3000+30"]

{[%evp 16,80,37,3,47,30,41,26,18,16,30,13,26,-40,-15,-2,-9,-20,-28,-16,-14,-95,-98,-87,-92,-100,-27,-60,-64,-236,-74,-80,-81,-81,-87,-84,-87,-115,-115,-121,-78,-77,-82,-405,-393,-1521,-1666,-1396,-1689,-1480,-1460,-1747,-1743,-1688,-1620,-1514,-1512,-5727,-6079,-6111,-6111,-29971,-29971,-29976,-29972,-29976,-29979]} 1. c4 {[%emt 0:10:02]} Nf6 {[%emt 0:10:03]} 2. Nc3 {[%emt 0:00:06]} e6 {[%emt 0:00:04]} 3. e4 {[%emt 0:00:13]} d5 {[%emt 0:00:08]} 4. e5 {[%emt 0:00:51]} d4 {[%emt 0:00:06]} 5. exf6 {[%emt 0:00:27]} dxc3 {[%emt 0:00:07]} 6. bxc3 {[%emt 0:01:43]} Qxf6 {[%emt 0:00:08]} 7. d4 {[%emt 0:00:27]} c5 {[%emt 0:00:55]} 8. Nf3 {[%emt 0:00:22]} h6 {[%emt 0:01:05]} 9. Be2 {[%emt 0:01:00]} Be7 {[%emt 0:02:51]} 10. O-O {[%emt 0:01:09]} O-O {[%emt 0:00:56]} 11. Be3 {[%emt 0:01:19]} Rd8 {[%emt 0:02:18] White has an edge.} 12. Qc2 {[%emt 0:00:54]} Nc6 {[%emt 0:02:39]} 13. Rfd1 {[%emt 0:01:06]} b6 {[%emt 0:01:42]} 14. Rd2 {[%emt 0:06:20]} (14. dxc5 $11 Bxc5 15. Rxd8+ Nxd8 16. Bxc5 bxc5 17. Qd3) 14... Ba6 {[%emt 0:06:00]} (14... Bb7 {seems wilder.} 15. dxc5 Nb4 16. Qd1 Rxd2 17. Qxd2 Rd8) 15. Rad1 {[%emt 0:01:31]} cxd4 {[%emt 0:06:46]} 16. cxd4 {[%emt 0:00:41]} Bb4 {[%emt 0:03:48]} 17. Rd3 {[%emt 0:12:11]} Rac8 {[%emt 0:04:10]} 18. d5 {[%emt 0:05:27]} (18. a3 $11 Bf8 19. Qa4) 18... exd5 $17 {[%emt 0:01:02]} 19. Rxd5 {[%emt 0:00:28]} Rxd5 {[%emt 0:00:38]} 20. Rxd5 {[%emt 0:04:19] [#]} Bf8 {[%emt 0:16:22]} ({Black should play} 20... Na5 $1 $17 {[%cal Ra5c4]} 21. Qa4 Bxc4 22. Bxc4 Rxc4 23. Qe8+ Bf8) 21. Qe4 {[%emt 0:09:55]} Nb4 {[%emt 0:05:46][%csl LRa2,LRd5]} 22. Bd4 $2 {[%emt 0:05:13] [#]} (22. Rd4 $15) 22... Qg6 $2 {[%emt 0:01:32]} (22... Qc6 $1 $19 23. Re5 (23. Ne5 $2 Qxd5 24. Qg4 Qd6 $19) 23... Qxe4 (23... Bxc4 $2 24. Qxc6 Rxc6 25. Bxc4 $19) 24. Rxe4 Bxc4 (24... Nxa2 $2 25. Bb2 $19) 25. Bxc4 Rxc4) 23. Qxg6 {[%emt 0:03:40]} fxg6 {[%emt 0:00:01]} 24. Rd7 {[%emt 0:00:27]} Bxc4 {[%emt 0:00:20]} 25. Bxc4+ {[%emt 0:01:05]} Rxc4 {[%emt 0:00:01]} 26. g3 {[%emt 0:00:43]} Nc6 {[%emt 0:03:21]} ({Much weaker is} 26... Nxa2 $6 27. Rxa7 Nc3 28. Bxb6 $11) 27. Be3 {[%emt 0:01:14] Inhibits Rc1+.} Bc5 {[%emt 0:02:44]} 28. Bxc5 {[%emt 0:02:39]} Rxc5 {[%emt 0:00:07][%mdl 4096] Endgame. KRN-KRN} ({Much worse is} 28... bxc5 29. Rc7 Nb4 30. Ne5 Rc1+ 31. Kg2 $11) 29. Rc7 $2 {[%emt 0:01:29][%mdl 8192]} (29. Kg2 $17) 29... Nd4 $19 {[%emt 0:01:33]} 30. Rxc5 $2 {[%emt 0:03:15]} (30. Rxa7 Nxf3+ 31. Kg2) 30... Nxf3+ {[%emt 0:00:05] KR-KN} ({Weaker is} 30... bxc5 31. Nxd4 cxd4 32. Kg2 $16) 31. Kg2 {[%emt 0:00:22]} Ne1+ {[%emt 0:00:05]} 32. Kf1 {[%emt 0:00:25]} bxc5 {[%emt 0:00:02]} 33. Kxe1 {[%emt 0:00:08] KP-KP} Kf7 {[%emt 0:00:04]} 34. Kd2 {[%emt 0:02:26]} Ke6 {[%emt 0:00:09]} 35. Kd3 {[%emt 0:02:00]} Kd5 {[%emt 0:00:10]} 36. f3 {[%emt 0:00:31]} g5 {[%emt 0:00:56]} 37. h3 {[%emt 0:01:23]} c4+ {[%emt 0:01:12]} 38. Kc3 {[%emt 0:00:21]} Kc5 {[%emt 0:00:04] Black mates.} 39. a3 {[%emt 0:02:22]} Kd5 {[%emt 0:00:29]} 40. a4 {[%emt 0:01:16]} a5 {[%emt 0:00:15] Weighted Error Value: White=1.08/Black=0.17 (very precise) .  Loses game:     	White=2     	---        Missed win:     	---       	Black=1      Mistake:       	White=3     	Black=1      Inaccurate:     	White=2     	Black=1      OK:         	White=8     	Black=7      Best:        	White=1     	Black=3} 0-1

[Event "4NCL Div 2 2024-25"]
[Site "England"]
[Date "2025.01.25"]
[Round "3.8"]
[White "Udovenko, Daniel"]
[Black "Cundy, Mark A"]
[Result "1-0"]
[Annotator "TA"]
[ECO "A80"]
[WhiteElo "1941"]
[BlackElo "1914"]
[PlyCount "25"]
[EventDate "2024.11.23"]
[EventType "team-tourn"]
[EventCountry "ENG"]
[SourceTitle "playchess.com"]
[Source "ChessBase"]
[SourceQuality "1"]
[TimeControl "40/6000+30:3000+30"]

{[%evp 9,25,19,22,21,16,10,16,8,12,0,37,15,33,18,73,28,531,540]} 1. d4 {[%emt 0:10:04]} f5 {[%emt 0:10:04]} 2. Bg5 {[%emt 0:00:04]} g6 {[%emt 0:00:21]} 3. e3 {[%emt 0:00:11]} Bg7 {[%emt 0:00:06]} 4. Nc3 {[%emt 0:00:21]} Nf6 {[%emt 0:00:31]} 5. Bc4 {[%emt 0:05:26]} c6 {[%emt 0:02:39]} 6. h4 {[%emt 0:01:18][%cal Oh4h5] A80: Dutch Defence: Unusual White second moves.} d5 {[%emt 0:01:54]} 7. Bb3 {[%emt 0:05:24]} Be6 $146 {[%emt 0:02:20]} (7... h6 8. Bf4 Be6 9. Nf3 Nbd7 10. Ne5 Nxe5 11. Bxe5 O-O 12. Ne2 Ng4 13. Bxg7 Kxg7 {0-1 Murzina,A (1698)-Lagashin,P (2148) Sochi Doroshkevich Amateur op 2017 (1)}) 8. Nf3 {[%emt 0:01:09] The position is equal.} Nbd7 {[%emt 0:00:46]} 9. Bf4 {[%emt 0:01:31]} Bg8 {[%emt 0:03:57]} 10. Qe2 {[%emt 0:04:18]} Qa5 {[%emt 0:07:30]} 11. Qd2 {[%emt 0:06:54]} O-O-O {[%emt 0:02:17]} (11... Qd8 $11) 12. O-O {[%emt 0:00:47][%cal Oc3d5] and Nxd5! should not be overlooked} Ng4 $2 {[%emt 0:03:26][%mdl 8192] [#]} (12... Re8 $11 {and Black is okay.}) 13. Nxd5 $1 {[%emt 0:00:39][%mdl 512] Weighted Error Value: White=0.13 (very precise) /Black=0.93  Loses game:     	---       	Black=1      Mistake:       	---       	Black=1      Inaccurate:     	White=1     	Black=1      OK:         	White=1     	Black=1      Brilliant:      	White=1     	---} 1-0

[Event "4NCL Div 2 2024-25"]
[Site "England"]
[Date "2025.01.25"]
[Round "3.9"]
[White "Macklin, Paul"]
[Black "Pein, Jonathan"]
[Result "1/2-1/2"]
[Annotator "TA"]
[ECO "C02"]
[WhiteElo "2308"]
[BlackElo "2249"]
[PlyCount "35"]
[EventDate "2024.11.23"]
[EventType "team-tourn"]
[EventCountry "ENG"]
[SourceTitle "playchess.com"]
[Source "ChessBase"]
[SourceQuality "1"]
[TimeControl "40/6000+30:3000+30"]

{[%evp 11,34,0,12,10,17,0,43,-13,-7,-49,-45,-50,-47,-83,-91,-87,-81,-97,-18,-18,-25,-18,-21,-20,-19]} 1. e4 {[%emt 0:17:52]} e6 {[%emt 0:10:05]} 2. d4 {[%emt 0:00:15]} d5 {[%emt 0:00:04]} 3. e5 {[%emt 0:00:22]} c5 {[%emt 0:00:04]} 4. c3 {[%emt 0:00:26]} Nc6 {[%emt 0:00:12]} 5. Nf3 {[%emt 0:00:14]} Bd7 {[%emt 0:00:06]} 6. Be2 {[%emt 0:00:59]} Rc8 {[%emt 0:00:10]} 7. O-O {[%emt 0:00:46] C02: French: Advance Variation.} h6 {[%emt 0:00:23] is cutting edge theory.} 8. Be3 {[%emt 0:14:15]} Nge7 {[%emt 0:00:06][%cal Bg8e7,Be7f5,Bf5e3][%mdl 32]} 9. Nbd2 $146 {[%emt 0:01:14]} (9. dxc5 $14 g5 10. c4) (9. dxc5 Nf5 10. Bd4 g5 11. Na3 a6 12. Nc2 Bg7 13. Bd3 Nfxd4 14. cxd4 O-O 15. Ne3 {0-1 Hardaway,B (2450)-Zierk,S (2487) Saint Louis Summer-B 2024 (6)}) 9... Nf5 $11 {[%emt 0:03:13]} 10. Kh1 {[%emt 0:05:08]} cxd4 {[%emt 0:04:10]} 11. cxd4 {[%emt 0:19:57]} Qb6 {[%emt 0:15:42]} 12. g4 {[%emt 0:09:59] [#]} Nxe3 {[%emt 0:02:38]} (12... Nfxd4 $2 13. Nb3 $18) 13. fxe3 {[%emt 0:03:30]} Be7 {[%emt 0:03:06]} (13... Qxb2 {is interesting.} 14. Rb1 Qxa2 15. Rxb7 Nd8) 14. a3 {[%emt 0:08:07]} a5 {[%emt 0:12:55]} (14... Qxb2 $17 {[%cal Ob2c3] Threatens to win with ...Qc3!.} 15. Bd3 Na5 (15... Bxa3 16. Rb1 $17)) 15. Rb1 {[%emt 0:01:16] [#]} a4 $1 {[%emt 0:03:26]} 16. Bd3 {[%emt 0:01:38]} Na5 {[%emt 0:05:19]} 17. Qe2 {[%emt 0:02:12]} Bc6 {[%emt 0:04:37]} 18. h3 {[%emt 0:08:27] Weighted Error Value: White=0.18 (very precise) /Black=0.15 (very precise)   Mistake:       	White=1     	Black=1      Inaccurate:     	White=2     	Black=1      OK:         	White=3     	Black=8} 1/2-1/2

[Event "4NCL Div 2 2024-25"]
[Site "England"]
[Date "2025.01.25"]
[Round "3.10"]
[White "Gallana, Marco"]
[Black "Longson, Alexander"]
[Result "0-1"]
[Annotator "TA"]
[ECO "A13"]
[WhiteElo "2216"]
[BlackElo "2250"]
[PlyCount "138"]
[EventDate "2024.11.23"]
[EventType "team-tourn"]
[EventCountry "ENG"]
[SourceTitle "playchess.com"]
[Source "ChessBase"]
[SourceQuality "1"]
[TimeControl "40/6000+30:3000+30"]

{[%evp 14,138,32,33,39,-3,-7,-11,-4,-14,0,-21,-3,-14,26,23,45,-164,-162,-167,-156,-164,-170,-163,-99,-97,-78,-171,-120,-118,-125,-114,-113,-118,-62,-68,-35,-54,-59,-61,-54,-58,-58,-59,-54,-55,-55,-52,-52,-70,-70,-70,-70,-70,-70,-70,-70,-70,-70,-70,-70,-70,-70,-70,-70,-70,-70,-70,0,-70,-70,-70,-70,-97,-70,-97,-82,-82,-82,-82,-82,-113,-113,-113,-113,-113,-113,-130,-130,-130,-130,-130,-130,-130,-130,-130,-130,-130,-130,-130,-130,-130,-130,-130,-130,-130,-130,-130,-130,-130,-130,-130,-130,-130,-8,-8,-8,-8,-8,-8,-8,-8,-8,-8,-8,-29992,-29993]} 1. c4 {[%emt 0:10:20]} e6 {[%emt 0:10:08]} 2. g3 {[%emt 0:00:17]} d5 {[%emt 0:00:13]} 3. Bg2 {[%emt 0:00:07]} Nf6 {[%emt 0:00:22]} 4. Nf3 {[%emt 0:03:16]} dxc4 {[%emt 0:00:36]} 5. Qa4+ {[%emt 0:00:11]} Nbd7 {[%emt 0:00:40]} 6. Qxc4 {[%emt 0:00:37]} a6 $1 {[%emt 0:00:28] 6...a6 is better than 6...c5.} 7. Qc2 {[%emt 0:07:12]} c5 {[%emt 0:00:13]} 8. Nc3 {[%emt 0:05:58]} Qc7 {[%emt 0:00:19] A13: English Opening: 1...e6.} 9. a4 {[%emt 0:03:35]} b6 {[%emt 0:01:58]} 10. d3 {[%emt 0:01:17]} Bb7 {[%emt 0:01:21] The position is equal.} 11. O-O {[%emt 0:01:41]} Be7 {[%emt 0:08:09]} 12. e4 {[%emt 0:01:32]} O-O {[%emt 0:05:34]} 13. h3 $146 {[%emt 0:06:55]} (13. Re1 Rac8 14. Qe2 c4 15. d4 e5 16. d5 Ne8 17. Be3 Nd6 18. Nd2 b5 19. axb5 axb5 {1-0 Tazbir,M (2508)-Marn,J (2332) EU-ch Blitz Katowice 2022 (6)}) 13... Bc6 {[%emt 0:01:12]} 14. Bf4 {[%emt 0:19:49]} Qb7 {[%emt 0:04:50]} 15. d4 $2 {[%emt 0:09:51]} (15. Nd2 $14 {keeps the upper hand.}) 15... Nxe4 $19 {[%emt 0:10:12]} 16. Ne5 {[%emt 0:00:24]} Nxe5 {[%emt 0:04:25]} 17. Nxe4 {[%emt 0:00:09]} Ng6 {[%emt 0:03:41]} (17... cxd4 18. Bxe5 Rfc8 19. g4 $16 (19. Bxd4 f5 $14)) 18. Bd6 {[%emt 0:02:50]} Bxd6 {[%emt 0:21:49]} (18... cxd4 $19 {[%cal Od4d3] Hoping for ...d3!.} 19. Bxe7 Nxe7) 19. Nxd6 $17 {[%emt 0:00:09]} Qc7 {[%emt 0:05:35]} 20. Ne4 {[%emt 0:05:37]} (20. Bxc6 $17 Qxc6 21. dxc5) 20... f5 {[%emt 0:09:37]} (20... cxd4 $19 21. Rfc1 Rfc8) 21. Ng5 {[%emt 0:00:15]} Bxg2 {[%emt 0:01:28]} 22. Kxg2 {[%emt 0:00:07]} Qc6+ {[%emt 0:02:18]} 23. Nf3 {[%emt 0:00:34]} Qd5 {[%emt 0:08:01] Black is more active.} (23... Rad8 $17 24. dxc5 bxc5) 24. dxc5 $15 {[%emt 0:05:07]} Ne5 {[%emt 0:01:45]} (24... Qxc5 $6 25. Qb3 $11) 25. Qc3 {[%emt 0:01:36]} Nxf3 {[%emt 0:00:07]} 26. Qxf3 {[%emt 0:00:07]} bxc5 {[%emt 0:00:22]} (26... Qxc5 27. Rac1 Qa5 28. Rfd1 $11) 27. Rac1 {[%emt 0:01:24]} Rfd8 {[%emt 0:03:38]} 28. Rfd1 {[%emt 0:04:02]} Qxf3+ {[%emt 0:00:09]} 29. Kxf3 {[%emt 0:00:07]} Rxd1 {[%emt 0:00:37]} 30. Rxd1 {[%emt 0:00:06][%mdl 4096] Endgame KR-KR. Black is a pawn up.} Rb8 {[%emt 0:01:57]} 31. Rd6 {[%emt 0:01:20][%csl LRa6,LRe6]} Kf7 {[%emt 0:00:35]} (31... Rxb2 32. Rxe6 Rb4 33. Rxa6 $14) 32. Rxa6 {[%emt 0:02:54]} Rxb2 {[%emt 0:00:04]} 33. Rc6 {[%emt 0:01:28]} Ra2 {[%emt 0:01:03]} 34. Rxc5 {[%emt 0:04:02]} Rxa4 {[%emt 0:00:03]} 35. h4 {[%emt 0:00:14]} Kf6 {[%emt 0:01:23]} 36. Rb5 {[%emt 0:00:34]} Rc4 {[%emt 0:00:11]} 37. Ra5 {[%emt 0:00:30]} Rb4 {[%emt 0:00:06]} 38. Ra6 {[%emt 0:01:09]} Rd4 {[%emt 0:01:29]} 39. Ke3 {[%emt 0:01:25]} Re4+ {[%emt 0:00:13]} 40. Kf3 {[%emt 0:00:10]} Rd4 {[%emt 0:00:12]} 41. Ke3 $1 {[%emt 0:50:10]} Rg4 {[%emt 0:50:35]} 42. Kf3 {[%emt 0:00:51]} h6 {[%emt 0:01:18]} 43. Rb6 {[%emt 0:01:07]} Ra4 {[%emt 0:00:00]} 44. Ke3 {[%emt 0:00:00]} Ra3+ {[%emt 0:00:00]} 45. Ke2 {[%emt 0:00:00] [#]} f4 $1 {[%emt 0:00:00]} 46. gxf4 {[%emt 0:00:00]} Rh3 {[%emt 0:00:00]} 47. Rb5 {[%emt 0:00:00]} Rxh4 {[%emt 0:00:00]} 48. Kf3 {[%emt 0:00:00]} Rh1 {[%emt 0:00:00]} 49. Kg2 {[%emt 0:00:00]} Rd1 {[%emt 0:00:00]} 50. f3 {[%emt 0:00:00]} Rd5 {[%emt 0:00:00]} 51. Rb8 {[%emt 0:00:00]} h5 {[%emt 0:00:00]} 52. Kg3 {[%emt 0:00:00]} Rd3 {[%emt 0:00:00]} 53. Rh8 {[%emt 0:00:00]} Kg6 {[%emt 0:00:00]} 54. Re8 {[%emt 0:00:00]} Kf7 {[%emt 0:00:00]} 55. Rh8 {[%emt 0:00:00]} g6 {[%emt 0:00:00]} 56. Ra8 {[%emt 0:00:00]} Rd7 {[%emt 0:01:01] Against Ra7} 57. Rb8 {[%emt 0:00:00]} Kf6 {[%emt 0:00:12]} 58. Rf8+ {[%emt 0:00:00]} Rf7 {[%emt 0:00:11]} 59. Ra8 {[%emt 0:00:00]} Rh7 {[%emt 0:04:31]} 60. Kh4 {[%emt 0:00:00]} Rb7 {[%emt 0:00:38]} 61. Kg3 {[%emt 0:00:00]} Rb5 {[%emt 0:00:55]} 62. Rf8+ {[%emt 0:00:00]} Kg7 {[%emt 0:00:09]} 63. Ra8 {[%emt 0:01:55]} g5 {[%emt 0:00:42]} ({Black should play} 63... Rb6 $17) 64. fxg5 $11 {[%emt 0:07:40]} Rxg5+ {[%emt 0:00:07]} 65. Kf4 {[%emt 0:00:16]} Rf5+ {[%emt 0:00:32]} 66. Kg3 {[%emt 0:00:11]} Kf6 {[%emt 0:01:09]} 67. Ra4 {[%emt 0:01:48]} Kg5 {[%emt 0:00:57]} 68. Re4 {[%emt 0:00:16]} e5 {[%emt 0:01:24]} 69. Rxe5 $2 {[%emt 0:00:11][%mdl 8192] [#]} h4+ {[%emt 0:00:35] Weighted Error Value: White=0.15 (very precise) /Black=0.10 (very precise)   Loses game:     	White=2     	---        Mistake:       	White=1     	Black=4      Inaccurate:     	White=4     	Black=2      OK:         	White=24    	Black=25     Best:        	White=3     	Black=7      Strong:       	White=1     	---} ({And not} 69... Rxe5 70. f4+ Kf5 71. fxe5 $11) 0-1